bitfinex/quotes_BTCUSD_20220211
["timestamp","ask_amount","ask_price","bid_price","bid_amount"]
[1644603878186,0.15442792,43486.0,43485.0,0.52425122]
[1644603878386,0.15442792,43486.0,43485.0,0.23]
[1644603878785,0.09693254,43486.0,43485.0,0.23]
[1644603879185,0.09693254,43486.0,43485.0,0.23097417]
[1644603880085,0.06476751,43487.0,43485.0,0.23097417]
[1644603881089,0.05749,43486.0,43485.0,0.23097417]
[1644603882337,0.05749,43486.0,43485.0,0.52522539]
[1644603885340,0.17225751,43487.0,43485.0,0.52522539]
[1644603885987,0.05749,43486.0,43485.0,0.52522539]
[1644603887690,0.05749,43486.0,43485.0,0.23097417]
[1644603888589,0.05749,43486.0,43485.0,0.57425687]
[1644603888788,0.05749,43486.0,43485.0,0.23097417]
[1644603888994,0.00063612,43490.0,43485.0,0.34999323]
[1644603889237,0.00063612,43490.0,43489.0,0.74338045]
[1644603889436,0.00063612,43490.0,43489.0,1.19441906]
[1644603889842,0.00063612,43490.0,43489.0,1.37093481]
[1644603890037,0.057477,43491.0,43489.0,1.37093481]
[1644603890237,0.057477,43491.0,43490.0,0.07301906]
[1644603890436,0.1730606,43492.0,43490.0,0.29553481]
[1644603890638,0.1730606,43492.0,43491.0,0.07301906]
[1644603890836,0.1730606,43492.0,43491.0,0.11901906]
[1644603891038,0.172427,43492.0,43491.0,0.11901906]
[1644603891240,0.057474,43492.0,43491.0,0.11901906]
[1644603894390,0.114955,43493.0,43491.0,0.12094646]
[1644603894592,0.114955,43493.0,43492.0,0.07301906]
[1644603894801,0.114955,43493.0,43492.0,0.11901906]
[1644603895291,0.00541675,43493.0,43492.0,0.11901906]
[1644603899242,0.00541675,43493.0,43492.0,0.11998685]
[1644603904639,0.32935675,43493.0,43492.0,0.00096779]
[1644603904842,0.00541675,43493.0,43492.0,0.00096779]
[1644603905239,0.00449571,43494.0,43492.0,0.00096779]
[1644603905444,0.2178478,43493.0,43492.0,0.00096779]
[1644603905843,0.3328028,43493.0,43492.0,0.00096779]
[1644603909188,0.3328028,43493.0,43491.0,0.00192649]
[1644603910890,0.3828028,43493.0,43491.0,0.00192649]
[1644603913339,0.164955,43493.0,43491.0,0.00192649]
[1644603914843,0.164955,43493.0,43491.0,0.00185265]
[1644603915687,0.164955,43493.0,43490.0,0.057494]
[1644603915688,0.164955,43493.0,43490.0,0.05413468]
[1644603915892,0.28744769,43492.0,43490.0,0.05413468]
[1644603917189,0.28744769,43492.0,43490.0,0.34850172]
[1644603917991,0.28744769,43492.0,43491.0,0.29436704]
[1644603918192,0.28744769,43492.0,43490.0,0.39753554]
[1644603918994,0.28744769,43492.0,43490.0,0.44353554]
[1644603918995,0.229959,43492.0,43490.0,0.44353554]
[1644603919236,0.229959,43492.0,43491.0,0.40815803]
[1644603919638,0.229959,43492.0,43491.0,0.40804303]
[1644603919840,0.05749,43492.0,43491.0,0.50804303]
[1644603920040,0.0813444,43493.0,43491.0,0.16475717]
[1644603920339,0.0813444,43493.0,43492.0,0.06475717]
[1644603923097,0.0813444,43493.0,43491.0,0.172426]
[1644603923293,0.39834286,43493.0,43491.0,0.172426]
[1644603923490,0.25921121,43492.0,43491.0,0.172426]
[1644603925093,0.25921121,43492.0,43491.0,0.29455177]
[1644603925291,0.17247017,43492.0,43490.0,0.05413468]
[1644603925491,0.36688076,43491.0,43490.0,0.05413468]
[1644603926950,0.85787165,43491.0,43489.0,0.29456248]
[1644603927142,0.26610015,43490.0,43489.0,0.29456248]
[1644603927344,0.31610015,43490.0,43489.0,0.29456248]
[1644603928244,0.31610015,43490.0,43488.0,0.35205948]
[1644603928445,0.25968208,43489.0,43488.0,0.35205948]
[1644603929646,0.25968208,43489.0,43488.0,0.057497]
[1644603931392,0.10749368,43490.0,43488.0,0.057497]
[1644603931594,0.10749368,43490.0,43489.0,0.29456335]
[1644603931792,0.37076463,43490.0,43489.0,0.29456335]
[1644603932795,0.10749368,43490.0,43489.0,0.29456335]
[1644603932995,0.10749368,43490.0,43488.0,0.057497]
[1644603933396,0.10749368,43490.0,43488.0,0.45109331]
[1644603933596,0.10749368,43490.0,43488.0,0.40113575]
[1644603937996,0.36490764,43490.0,43488.0,0.40113575]
[1644603938796,0.10749368,43490.0,43488.0,0.40113575]
[1644603939597,0.10749368,43490.0,43488.0,0.39113575]
[1644603940399,0.08471096,43489.0,43488.0,0.39113575]
[1644603940599,0.3495492,43489.0,43488.0,0.047497]
[1644603942238,0.26483824,43489.0,43488.0,0.047497]
[1644603942641,0.26483824,43489.0,43488.0,0.39113575]
[1644603942836,0.26483824,43489.0,43488.0,0.44506992]
[1644603943839,0.10740018,43490.0,43488.0,0.44506992]
[1644603944039,0.10740018,43490.0,43488.0,0.39113575]
[1644603945693,0.25751533,43489.0,43488.0,0.39113575]
[1644603946194,0.30751533,43489.0,43486.0,0.45918188]
[1644603946394,0.057505,43488.0,43486.0,0.00055513]
[1644603946592,0.057505,43488.0,43485.0,0.57382799]
[1644603946593,0.54919655,43487.0,43485.0,0.57382799]
[1644603946795,0.28219454,43486.0,43485.0,0.5741941]
[1644603946994,0.28219454,43486.0,43485.0,0.23065535]
[1644603947196,0.28219454,43486.0,43485.0,0.61690349]
[1644603947394,0.28219454,43486.0,43485.0,0.61671425]
[1644603947794,0.28219454,43486.0,43485.0,0.6161589]
[1644603949642,0.33219454,43486.0,43485.0,0.6161589]
[1644603949947,0.32899059,43486.0,43485.0,0.6161589]
[1644603950945,0.32899059,43486.0,43485.0,0.2301]
[1644603951143,0.32899059,43486.0,43485.0,0.23028924]
[1644603951353,0.22148259,43486.0,43485.0,0.23028924]
[1644603951543,0.32394,43486.0,43485.0,0.23028924]
[1644603951943,0.32394,43486.0,43485.0,0.38028924]
[1644603952548,0.32394,43486.0,43485.0,0.23028924]
[1644603952743,0.32394,43486.0,43485.0,0.28028924]
[1644603954698,0.32394,43486.0,43485.0,0.28145012]
[1644603956499,0.32394,43486.0,43485.0,0.23145012]
[1644603957147,0.32394,43486.0,43485.0,0.23126088]
[1644603957449,0.32394,43486.0,43485.0,0.52596069]
[1644603957653,0.32394,43486.0,43485.0,0.23126088]
[1644603957949,0.32394,43486.0,43485.0,0.23145012]
[1644603959852,0.31403202,43487.0,43485.0,0.23145012]
[1644603960053,0.31403202,43487.0,43485.0,0.52614993]
[1644603960253,0.31403202,43487.0,43485.0,0.57614993]
[1644603960489,0.32394,43486.0,43485.0,0.57611802]
[1644603960893,0.32394,43486.0,43485.0,0.28145012]
[1644603961091,0.32394,43486.0,43485.0,0.57611802]
[1644603961690,0.32394,43486.0,43485.0,0.23145012]
[1644603961890,0.32394,43486.0,43485.0,0.5261109]
[1644603962893,0.32394,43486.0,43485.0,0.51882099]
[1644603964338,0.32394,43486.0,43485.0,0.22416021]
[1644603964539,0.32394,43486.0,43485.0,0.37416021]
[1644603964740,0.05749684,43489.0,43485.0,0.82738584]
[1644603964942,0.32394,43489.0,43487.0,0.49363875]
[1644603965140,0.00059976,43490.0,43488.0,0.05958495]
[1644603965340,0.00059976,43490.0,43488.0,0.39374629]
[1644603965543,0.32297596,43490.0,43488.0,0.05]
[1644603965740,0.32297596,43490.0,43489.0,0.2]
[1644603965741,0.32394,43490.0,43489.0,0.2]
[1644603966041,0.59081779,43499.0,43489.0,0.2]
[1644603966042,0.05748948,43494.0,43492.0,0.164982]
[1644603966240,0.323924,43493.0,43492.0,0.164982]
[1644603967643,0.323924,43493.0,43492.0,0.107491]
[1644603967843,0.05748948,43494.0,43492.0,0.257491]
[1644603968105,0.00027364,43495.0,43494.0,0.15]
[1644603968299,0.00027364,43496.0,43494.0,0.15]
[1644603968500,0.00027364,43504.0,43496.0,0.15]
[1644603968699,0.00027364,43497.0,43496.0,0.15]
[1644603968900,0.00270114,43503.0,43496.0,0.15]
[1644603969100,0.05775698,43502.0,43496.0,0.15]
[1644603969299,0.05748334,43502.0,43496.0,0.15]
[1644603969499,0.30809381,43499.0,43498.0,0.05]
[1644603969703,0.00047592,43502.0,43498.0,0.107484]
[1644603969899,0.00027364,43501.0,43498.0,0.057484]
[1644603970100,0.00074956,43502.0,43498.0,0.057484]
[1644603970299,0.00027364,43501.0,43498.0,0.057484]
[1644603970499,0.00027364,43503.0,43498.0,0.057484]
[1644603970701,0.00027364,43501.0,43498.0,0.057484]
[1644603970899,0.34761536,43499.0,43498.0,0.057484]
[1644603971751,0.34761536,43499.0,43498.0,0.107484]
[1644603971951,0.00027364,43500.0,43498.0,0.107484]
[1644603972151,0.05815944,43501.0,43498.0,0.107484]
[1644603972352,0.00027364,43500.0,43498.0,0.107484]
[1644603972553,0.05815944,43501.0,43498.0,0.107484]
[1644603972753,0.00027364,43500.0,43498.0,0.107484]
[1644603972951,0.05748387,43501.0,43498.0,0.107484]
[1644603973153,0.00027364,43501.0,43498.0,0.107484]
[1644603973356,0.25846786,43502.0,43498.0,0.107484]
[1644603973554,0.00027364,43501.0,43498.0,0.107484]
[1644603973755,0.25846786,43502.0,43498.0,0.107484]
[1644603974156,0.25783925,43502.0,43498.0,0.107484]
[1644603974556,0.00062861,43502.0,43498.0,0.107484]
[1644603974757,0.00062861,43502.0,43498.0,0.057484]
[1644603974958,0.05838635,43502.0,43498.0,0.057484]
[1644603975357,0.05775774,43502.0,43498.0,0.057484]
[1644603975593,0.05838635,43502.0,43498.0,0.057484]
[1644603976498,0.05838635,43502.0,43500.0,0.15]
[1644603976499,0.00027364,43502.0,43500.0,0.15]
[1644603976794,0.00027364,43502.0,43500.0,0.207478]
[1644603976795,0.00062861,43502.0,43500.0,0.207478]
[1644603977195,0.00090225,43502.0,43500.0,0.207478]
[1644603977396,0.00062861,43502.0,43500.0,0.207478]
[1644603977595,0.00062861,43502.0,43501.0,0.057479]
[1644603977797,0.3466548,43507.0,43500.0,0.437478]
[1644603977798,0.00027364,43503.0,43500.0,0.437478]
[1644603978000,0.00063307,43503.0,43500.0,0.437478]
[1644603978196,0.00063307,43503.0,43501.0,0.05]
[1644603978801,0.00090671,43503.0,43501.0,0.10748]
[1644603978999,0.05775214,43504.0,43501.0,0.05]
[1644603979259,0.00027364,43503.0,43501.0,0.05]
[1644603979459,0.36076019,43504.0,43501.0,0.05]
[1644603979660,0.00027364,43503.0,43501.0,0.05]
[1644603979861,0.36076019,43504.0,43501.0,0.05]
[1644603980259,0.36040076,43504.0,43501.0,0.05]
[1644603980460,0.07437681,43502.0,43501.0,0.05]
[1644603980660,0.6668299,43502.0,43501.0,0.05]
[1644603980860,0.3429059,43502.0,43501.0,0.05]
[1644603981061,0.3429059,43502.0,43500.0,0.13]
[1644603981264,0.27848901,43501.0,43500.0,0.13]
[1644603982265,0.60241301,43501.0,43500.0,0.13]
[1644603982461,0.27848901,43501.0,43500.0,0.13]
[1644603983500,0.59372002,43501.0,43500.0,0.13]
[1644603983700,0.26979602,43501.0,43500.0,0.13]
[1644603985004,0.69372002,43501.0,43500.0,0.13]
[1644603985401,0.78972002,43501.0,43500.0,0.13]
[1644603986744,0.519924,43501.0,43500.0,0.13]
[1644603986944,0.369924,43501.0,43500.0,0.13]
[1644603988846,0.63249424,43501.0,43500.0,0.13]
[1644603991189,0.63249424,43501.0,43500.0,0.12458447]
[1644603992193,0.83249424,43501.0,43500.0,0.12458447]
[1644603992391,0.78249424,43501.0,43500.0,0.12458447]
[1644603992591,0.83249424,43501.0,43500.0,0.12458447]
[1644603994251,1.05,43500.0,43491.0,0.42]
[1644603994450,0.381426,43496.0,43491.0,0.42]
[1644603994649,0.05,43497.0,43488.0,0.0001]
[1644603994650,0.323924,43494.0,43488.0,0.0001]
[1644603994851,0.08015198,43490.0,43488.0,0.0001]
[1644603995049,0.08015198,43490.0,43487.0,0.00055204]
[1644603995249,0.323924,43489.0,43487.0,0.00055204]
[1644603995450,0.64440407,43489.0,43487.0,0.00055204]
[1644603995649,0.25603967,43489.0,43487.0,0.00055204]
[1644603995850,0.25603967,43489.0,43485.0,0.00028924]
[1644603996150,0.323924,43488.0,43486.0,0.00055206]
[1644603996351,0.588809,43488.0,43486.0,0.00055206]
[1644603996551,0.264885,43488.0,43486.0,0.00055206]
[1644603996755,0.373924,43487.0,43486.0,0.00055206]
[1644603997057,0.373924,43487.0,43485.0,0.00028924]
[1644603997058,0.73184357,43487.0,43485.0,0.00028924]
[1644603997252,0.63153661,43486.0,43485.0,0.0001]
[1644603997452,0.63153661,43486.0,43484.0,0.00055207]
[1644603997453,0.381444,43485.0,43484.0,0.00055207]
[1644603997653,0.9149703,43485.0,43484.0,0.00055207]
[1644603997872,1.0649703,43485.0,43484.0,0.00055207]
[1644603998300,0.05752341,43484.0,43479.0,0.00018924]
[1644603998497,0.05752341,43484.0,43482.0,0.00056283]
[1644603998498,0.431448,43483.0,43482.0,0.00056283]
[1644603998698,0.431448,43483.0,43478.0,0.0011]
[1644603998699,0.93020731,43483.0,43478.0,0.00010283]
[1644603998899,0.93020731,43483.0,43478.0,0.00018924]
[1644603998900,0.05,43479.0,43478.0,0.00018924]
[1644603999100,0.05,43479.0,43473.0,0.00018924]
[1644603999101,0.77637843,43479.0,43473.0,0.00018924]
[1644603999300,0.29122355,43477.0,43473.0,0.00018924]
[1644603999498,0.369924,43476.0,43473.0,0.00018924]
[1644603999699,0.44711602,43476.0,43473.0,0.00018924]
[1644604000000,0.323924,43475.0,43473.0,0.00018924]
[1644604000199,0.369924,43475.0,43473.0,0.00018924]
[1644604000398,0.469924,43475.0,43473.0,0.00018924]
[1644604000804,0.11506308,43477.0,43473.0,0.00018924]
[1644604001001,0.35645443,43479.0,43473.0,0.00018924]
[1644604001199,0.35645443,43479.0,43474.0,0.47651329]
[1644604001405,0.046,43478.0,43474.0,0.288611]
[1644604001600,0.046,43478.0,43474.0,0.28128924]
[1644604002044,0.046,43478.0,43474.0,0.28148777]
[1644604002446,0.046,43478.0,43474.0,0.05148777]
[1644604003045,0.046,43478.0,43474.0,0.04628924]
[1644604003245,0.046,43478.0,43474.0,0.04694959]
[1644604003644,0.35645443,43479.0,43474.0,0.04694959]
[1644604003846,0.35645443,43479.0,43474.0,0.00084959]
[1644604004248,0.05751599,43477.0,43474.0,0.00018924]
[1644604004450,0.323924,43476.0,43474.0,0.00066034]
[1644604004647,0.26352263,43475.0,43474.0,0.00084958]
[1644604004845,0.323924,43475.0,43474.0,0.00066034]
[1644604005500,0.323924,43474.0,43473.0,0.00018924]
[1644604005696,0.323924,43474.0,43472.0,0.0011]
[1644604005697,0.323924,43474.0,43472.0,0.00066037]
[1644604005895,0.2672252,43475.0,43472.0,0.00066037]
[1644604006094,0.05752332,43476.0,43472.0,0.00066037]
[1644604006294,0.38917834,43475.0,43472.0,0.00066037]
[1644604006495,0.323924,43474.0,43472.0,0.00066037]
[1644604006696,0.05752114,43472.0,43467.0,0.0001]
[1644604006897,0.31372076,43471.0,43467.0,0.0001]
[1644604007497,0.26181128,43470.0,43467.0,0.0001]
[1644604007698,0.31950947,43468.0,43467.0,0.0001]
[1644604008397,0.05,43474.0,43467.0,0.0001]
[1644604008598,0.30054783,43474.0,43468.0,0.15966703]
[1644604008800,0.35054783,43474.0,43468.0,0.15966703]
[1644604009260,0.35054783,43474.0,43469.0,0.00066043]
[1644604009261,0.681455,43473.0,43469.0,0.00066043]
[1644604009463,1.05,43470.0,43467.0,0.0001]
[1644604009662,0.669924,43469.0,43467.0,0.0001]
[1644604009857,0.519924,43469.0,43467.0,0.0001]
[1644604010059,0.323924,43468.0,43467.0,0.0001]
[1644604010263,0.73496168,43468.0,43467.0,0.0001]
[1644604010459,0.77741568,43468.0,43467.0,0.0001]
[1644604011659,1.0596586,43468.0,43467.0,0.0001]
[1644604011859,1.0596586,43468.0,43464.0,0.0011]
[1644604011860,0.0576463,43466.0,43464.0,0.0011]
[1644604012061,0.29386765,43465.0,43464.0,0.0011]
[1644604012461,0.36158288,43465.0,43464.0,0.0011]
[1644604012661,0.68550688,43465.0,43464.0,0.0011]
[1644604012861,0.46158288,43465.0,43464.0,0.2211]
[1644604013496,0.78550688,43465.0,43464.0,0.2211]
[1644604013696,0.46158288,43465.0,43464.0,0.2211]
[1644604015498,0.39386765,43465.0,43464.0,0.2211]
[1644604015700,0.61835052,43465.0,43464.0,0.2211]
[1644604016001,0.03073479,43465.0,43464.0,0.2211]
[1644604016198,0.4315703,43466.0,43464.0,0.2211]
[1644604017253,0.5315703,43466.0,43464.0,0.2211]
[1644604019355,0.5315703,43466.0,43465.0,0.0008129]
[1644604020895,0.5315703,43466.0,43465.0,0.00100165]
[1644604022299,0.00011034,43466.0,43465.0,0.00100165]
[1644604022603,0.00011034,43466.0,43465.0,0.04700165]
[1644604022997,0.00011034,43466.0,43465.0,0.24930394]
[1644604023198,0.00011034,43466.0,43465.0,0.61057623]
[1644604023396,0.00011034,43466.0,43465.0,0.66809523]
[1644604023797,0.00011034,43466.0,43465.0,0.71809523]
[1644604024251,0.00011034,43466.0,43465.0,0.35682294]
[1644604024653,0.00011034,43466.0,43465.0,0.65086499]
[1644604025257,0.00011034,43466.0,43465.0,0.35682294]
[1644604026056,0.00011034,43466.0,43465.0,0.65072413]
[1644604026657,0.00011034,43466.0,43465.0,0.89580846]
[1644604026856,0.00011034,43466.0,43465.0,0.65072413]
[1644604027156,0.00011034,43466.0,43465.0,0.89580846]
[1644604027762,0.00011034,43466.0,43465.0,0.69350617]
[1644604028015,0.32403434,43466.0,43465.0,0.00100165]
[1644604028405,0.37403434,43466.0,43465.0,0.00100165]
[1644604028604,0.65845545,43466.0,43465.0,0.00100165]
[1644604028802,1.04480332,43466.0,43465.0,0.00100165]
[1644604029006,0.76038221,43466.0,43465.0,0.00100165]
[1644604029603,0.43645821,43466.0,43465.0,0.00100165]
[1644604029803,0.76038221,43466.0,43465.0,0.00100165]
[1644604030002,0.43645821,43466.0,43465.0,0.00100165]
[1644604030203,0.76038221,43466.0,43465.0,0.00100165]
[1644604030404,1.03125976,43466.0,43465.0,0.00100165]
[1644604030603,1.08125976,43466.0,43463.0,0.00053922]
[1644604030806,0.323924,43463.0,43458.0,0.0011]
[1644604031106,0.05,43460.0,43458.0,0.0011]
[1644604031306,0.323924,43459.0,43458.0,0.0011]
[1644604031749,0.473924,43459.0,43458.0,0.0011]
[1644604032449,3.13540889,43459.0,43458.0,0.0011]
[1644604033849,3.18540889,43459.0,43458.0,0.0011]
[1644604034949,3.13540889,43459.0,43458.0,0.0011]
[1644604036802,0.519924,43459.0,43458.0,0.0011]
[1644604037002,0.369924,43459.0,43458.0,0.0011]
[1644604038002,0.323924,43459.0,43458.0,0.0011]
[1644604038804,0.473924,43459.0,43458.0,0.0011]
[1644604039249,0.77771223,43459.0,43458.0,0.0011]
[1644604039447,2.50485526,43459.0,43458.0,0.0011]
[1644604040248,2.55085526,43459.0,43458.0,0.0011]
[1644604040453,2.60085526,43459.0,43458.0,0.0011]
[1644604040649,2.60085526,43459.0,43456.0,0.0011]
[1644604040650,2.60085526,43459.0,43456.0,0.00065129]
[1644604040651,0.323924,43458.0,43456.0,0.00065129]
[1644604040853,0.35919781,43457.0,43456.0,0.00065129]
[1644604041050,0.68312181,43457.0,43456.0,0.00065129]
[1644604041253,0.83312181,43457.0,43456.0,0.00065129]
[1644604041651,0.20980873,43455.0,43454.0,0.0011]
[1644604041853,0.49845807,43455.0,43454.0,0.0011]
[1644604042052,0.76078324,43456.0,43454.0,0.0011]
[1644604042251,0.1,43455.0,43454.0,0.0011]
[1644604042453,0.577488,43456.0,43454.0,0.0011]
[1644604042754,0.635044,43456.0,43454.0,0.0011]
[1644604043808,0.84412273,43456.0,43454.0,0.0011]
[1644604044609,0.78656673,43456.0,43454.0,0.0011]
[1644604045411,0.577488,43456.0,43454.0,0.0011]
[1644604045612,0.05755404,43457.0,43454.0,0.0011]
[1644604045812,0.05755404,43457.0,43456.0,0.32301271]
[1644604046013,0.38148704,43457.0,43456.0,0.32301271]
[1644604047951,0.43148704,43457.0,43456.0,0.32301271]
[1644604048151,0.72733773,43457.0,43456.0,0.32301271]
[1644604049452,0.43148704,43457.0,43456.0,0.32301271]
[1644604050512,0.69579272,43457.0,43456.0,0.32301271]
[1644604051411,0.90795854,43457.0,43456.0,0.32301271]
[1644604054251,1.00795854,43457.0,43456.0,0.32301271]
[1644604055252,0.53148704,43457.0,43456.0,0.32301271]
[1644604055454,0.43148704,43457.0,43456.0,0.32301271]
[1644604055654,0.05755404,43457.0,43456.0,0.32301271]
[1644604055851,0.38148704,43457.0,43456.0,0.32301271]
[1644604056051,0.38148704,43457.0,43456.0,0.32320087]
[1644604056450,0.38148704,43457.0,43456.0,0.32301271]
[1644604060100,0.38148704,43457.0,43456.0,0.32320087]
[1644604061302,0.35790683,43457.0,43456.0,0.32320087]
[1644604062152,0.40790683,43457.0,43456.0,0.32301271]
[1644604063151,0.60524624,43457.0,43456.0,0.32301271]
[1644604063752,0.60517072,43457.0,43456.0,0.32301271]
[1644604064054,0.91774666,43457.0,43456.0,0.32301271]
[1644604064252,0.72040725,43457.0,43456.0,0.32301271]
[1644604064453,0.40783131,43457.0,43456.0,0.32301271]
[1644604064753,0.68260089,43457.0,43456.0,0.32301271]
[1644604065356,0.40783131,43457.0,43456.0,0.32301271]
[1644604065611,0.67543908,43457.0,43456.0,0.32301271]
[1644604066210,0.77543908,43457.0,43456.0,0.32301271]
[1644604072661,1.05,43456.0,43455.0,0.00018815]
[1644604072863,1.88921751,43456.0,43454.0,0.00128815]
[1644604073118,1.88921751,43456.0,43448.0,0.0011]
[1644604073119,0.323933,43453.0,43448.0,0.0011]
[1644604073317,0.323933,43453.0,43439.0,0.24685453]
[1644604073318,1.05,43448.0,43439.0,0.24685453]
[1644604073523,1.05,43439.0,43432.0,0.00865658]
[1644604073715,1.05,43439.0,43430.0,0.0011]
[1644604073716,0.05,43434.0,43430.0,0.0011]
[1644604073914,0.115198,43432.0,43430.0,0.0011]
[1644604074116,0.72036468,43431.0,43429.0,0.0022]
[1644604074317,0.53481809,43430.0,43429.0,0.0022]
[1644604074516,0.63081809,43430.0,43429.0,0.0022]
[1644604074713,0.73081809,43430.0,43429.0,0.0022]
[1644604075714,1.04222527,43430.0,43429.0,0.0022]
[1644604076116,0.046,43430.0,43429.0,0.0022]
[1644604076317,0.02917254,43430.0,43429.0,0.0022]
[1644604076516,0.6231988,43430.0,43429.0,0.0022]
[1644604076968,0.7231988,43430.0,43429.0,0.0022]
[1644604077361,0.7231988,43430.0,43424.0,0.0011]
[1644604077362,0.323933,43429.0,43424.0,0.0011]
[1644604077562,0.38153489,43427.0,43424.0,0.0011]
[1644604077862,0.71360835,43425.0,43424.0,0.0011]
[1644604078061,1.07912507,43425.0,43424.0,0.0011]
[1644604078261,1.12912507,43425.0,43424.0,0.0011]
[1644604078662,0.86720935,43425.0,43424.0,0.0011]
[1644604078862,0.96720935,43425.0,43424.0,0.0011]
[1644604079565,0.86720935,43425.0,43424.0,0.0011]
[1644604080511,0.96720935,43425.0,43424.0,0.0011]
[1644604080906,1.28135115,43425.0,43424.0,0.0011]
[1644604082006,0.18673112,43424.0,43422.0,0.00174053]
[1644604082209,0.69858654,43423.0,43422.0,0.00174053]
[1644604082406,0.74858654,43423.0,43422.0,0.00174053]
[1644604082605,1.05,43422.0,43421.0,0.0122]
[1644604082805,1.05,43422.0,43414.0,0.0022]
[1644604082806,1.05,43421.0,43420.0,0.00284056]
[1644604083006,1.43513907,43421.0,43420.0,0.00284056]
[1644604083206,1.43513907,43421.0,43414.0,0.00366263]
[1644604083207,1.431543,43420.0,43414.0,0.00366263]
[1644604083408,1.431543,43420.0,43411.0,0.0089]
[1644604083409,0.323933,43418.0,43411.0,0.0089]
[1644604083606,0.50316984,43417.0,43411.0,0.0089]
[1644604083808,0.323933,43415.0,43411.0,0.0089]
[1644604084008,0.72914259,43414.0,43411.0,0.0089]
[1644604084251,0.8454475,43413.0,43411.0,0.0089]
[1644604084453,0.70427152,43412.0,43411.0,0.0089]
[1644604084855,0.80384507,43412.0,43411.0,0.0089]
[1644604085251,0.91908607,43412.0,43411.0,0.0089]
[1644604086555,0.80384507,43412.0,43411.0,0.0089]
[1644604088304,0.80384507,43412.0,43411.0,0.0039]
[1644604088501,0.469933,43412.0,43411.0,0.0039]
[1644604088718,0.323933,43412.0,43411.0,0.0039]
[1644604088904,0.17286287,43413.0,43411.0,0.0039]
[1644604088905,0.323933,43413.0,43411.0,0.00408764]
[1644604089102,0.05761899,43414.0,43411.0,0.00408764]
[1644604089602,0.323933,43413.0,43411.0,0.00408764]
[1644604089804,0.05761899,43414.0,43411.0,0.00408764]
[1644604090005,0.323933,43413.0,43411.0,0.00408764]
[1644604091309,0.38153537,43413.0,43411.0,0.00408764]
[1644604091509,0.05760237,43413.0,43411.0,0.00408764]
[1644604091953,0.323933,43412.0,43411.0,0.00408764]
[1644604092153,0.05760237,43413.0,43411.0,0.00408764]
[1644604092355,0.323933,43412.0,43410.0,0.00191319]
[1644604093454,0.323933,43412.0,43410.0,0.00128764]
[1644604094353,0.05760237,43413.0,43410.0,0.00128764]
[1644604094354,0.323933,43411.0,43410.0,0.00128764]
[1644604095800,0.373933,43411.0,43410.0,0.00128764]
[1644604096200,0.323933,43411.0,43410.0,0.00128764]
[1644604098502,0.373933,43411.0,43410.0,0.00128764]
[1644604098902,0.323933,43411.0,43410.0,0.00128764]
[1644604099552,0.373933,43411.0,43410.0,0.00128764]
[1644604100151,0.65316089,43411.0,43410.0,0.00128764]
[1644604100953,0.48764645,43411.0,43410.0,0.00128764]
[1644604101957,0.58764645,43411.0,43410.0,0.00110764]
[1644604102157,0.32764267,43407.0,43406.0,0.0022]
[1644604102456,0.77246465,43407.0,43406.0,0.0022]
[1644604102656,0.82246465,43407.0,43406.0,0.0011]
[1644604102861,0.87230611,43407.0,43406.0,0.0011]
[1644604103311,0.26977858,43403.0,43402.0,0.00018765]
[1644604103514,0.26977858,43403.0,43401.0,0.06]
[1644604103515,0.323954,43402.0,43401.0,0.06]
[1644604105014,0.59791493,43402.0,43401.0,0.06]
[1644604105215,0.59791493,43402.0,43401.0,0.01]
[1644604106414,1.1652612,43401.0,43396.0,0.02]
[1644604106614,0.381588,43400.0,43396.0,0.02]
[1644604106869,0.43152326,43399.0,43396.0,0.02]
[1644604107068,0.439224,43398.0,43396.0,0.02]
[1644604107268,0.39729551,43397.0,43396.0,0.02]
[1644604107470,0.77938524,43397.0,43396.0,0.02]
[1644604107669,0.88301824,43397.0,43396.0,0.02]
[1644604108473,0.88301824,43397.0,43380.0,0.0022]
[1644604108474,1.05,43395.0,43380.0,0.0022]
[1644604108674,0.24185173,43386.0,43381.0,0.01]
[1644604108873,0.56580573,43386.0,43385.0,0.00238749]
[1644604109074,0.39788956,43387.0,43385.0,0.00238749]
[1644604109872,0.50553856,43387.0,43385.0,0.00238749]
[1644604110074,0.323954,43386.0,43381.0,0.00348749]
[1644604110276,0.323954,43385.0,43381.0,0.00348749]
[1644604110519,0.11528188,43385.0,43381.0,0.00348749]
[1644604110912,0.06241013,43385.0,43381.0,0.00348749]
[1644604111113,0.05764094,43386.0,43381.0,0.00348749]
[1644604111114,0.05764094,43386.0,43384.0,0.05]
[1644604111315,0.05764094,43386.0,43385.0,0.37125117]
[1644604111514,0.38159494,43386.0,43385.0,0.37125117]
[1644604111714,0.38159494,43386.0,43385.0,0.32125117]
[1644604112013,0.38159494,43386.0,43383.0,0.00609325]
[1644604112214,0.0576238,43388.0,43385.0,0.05]
[1644604112414,0.35247189,43397.0,43386.0,0.32913703]
[1644604112615,0.323954,43396.0,43389.0,0.045]
[1644604112815,0.32739558,43403.0,43390.0,0.27904567]
[1644604113015,0.11523035,43399.0,43390.0,0.27904567]
[1644604113217,0.323954,43397.0,43390.0,0.32904567]
[1644604113414,0.07678879,43391.0,43390.0,0.32904567]
[1644604113614,0.07678879,43391.0,43390.0,0.05]
[1644604114264,0.07678879,43391.0,43390.0,0.33455249]
[1644604114462,0.07178879,43391.0,43390.0,0.33455249]
[1644604115063,0.39574279,43391.0,43390.0,0.33455249]
[1644604115263,0.323954,43392.0,43390.0,0.33455249]
[1644604115867,0.323954,43392.0,43390.0,0.05]
[1644604118205,0.323954,43391.0,43390.0,0.05]
[1644604118407,0.323954,43392.0,43390.0,0.05]
[1644604119009,0.323954,43392.0,43391.0,0.28019215]
[1644604119208,0.31543211,43392.0,43391.0,0.32619215]
[1644604119408,0.11523123,43400.0,43391.0,0.32619215]
[1644604119610,0.17284331,43409.0,43399.0,0.05]
[1644604119810,0.13406639,43418.0,43400.0,0.103608]
[1644604120009,0.07035448,43408.0,43403.0,0.36008199]
[1644604120210,0.05760299,43406.0,43404.0,0.046]
[1644604120810,0.05760299,43406.0,43404.0,0.096]
[1644604121013,0.02222867,43406.0,43404.0,0.096]
[1644604121858,0.34619667,43406.0,43404.0,0.096]
[1644604122257,0.02222867,43406.0,43404.0,0.096]
[1644604122456,0.02222867,43406.0,43404.0,0.046]
[1644604122457,0.34619667,43406.0,43404.0,0.046]